[Event "Early-Titled-Tuesday-Blitz-November-28-2023"]
[Site "Chess.com"]
[Date "2023.11.28"]
[Round "2"]
[White "Pingah9"]
[Black "baki83"]
[Result "0-1"]
[WhiteElo "2544"]
[BlackElo "2817"]
[TimeControl "180+1"]
[EndTime "8:16:00 PST"]
[Termination "baki83 won by resignation"]

1. e4 {[%clk 0:03:00.9]} 1... c5 {[%clk 0:02:58.7]} 2. Nf3 {[%clk 0:02:58]} 2...
d6 {[%clk 0:02:58.8]} 3. d4 {[%clk 0:02:58.3]} 3... cxd4 {[%clk 0:02:59.2]} 4.
Nxd4 {[%clk 0:02:59.2]} 4... Nf6 {[%clk 0:02:59.5]} 5. Nc3 {[%clk 0:02:59.8]}
5... Nc6 {[%clk 0:02:59.3]} 6. Bg5 {[%clk 0:02:59.6]} 6... e6 {[%clk 0:02:58.2]}
7. f4 {[%clk 0:02:58.3]} 7... Qb6 {[%clk 0:02:38.1]} 8. Nb3 {[%clk 0:02:47.1]}
8... Be7 {[%clk 0:02:34.9]} 9. Qd2 {[%clk 0:02:46]} 9... h6 {[%clk 0:02:35]} 10.
Bh4 {[%clk 0:02:43.2]} 10... Nxe4 {[%clk 0:02:34]} 11. Nxe4 {[%clk 0:02:41.8]}
11... Bxh4+ {[%clk 0:02:34.1]} 12. g3 {[%clk 0:02:42.1]} 12... Be7 {[%clk
0:02:30.2]} 13. Nxd6+ {[%clk 0:02:42.1]} 13... Bxd6 {[%clk 0:02:30.1]} 14. Qxd6
{[%clk 0:02:43]} 14... Qe3+ {[%clk 0:02:23.3]} 15. Be2 {[%clk 0:02:40.8]} 15...
Bd7 {[%clk 0:02:22.7]} 16. Qc5 {[%clk 0:02:31]} 16... Qxc5 {[%clk 0:02:11.6]}
17. Nxc5 {[%clk 0:02:31.9]} 17... O-O-O {[%clk 0:02:11.8]} 18. O-O-O {[%clk
0:02:30]} 18... Kc7 {[%clk 0:02:10.7]} 19. Bf3 {[%clk 0:02:23.8]} 19... Bc8
{[%clk 0:02:09.5]} 20. c3 {[%clk 0:02:19]} 20... g5 {[%clk 0:02:07.1]} 21. Rxd8
{[%clk 0:02:14.7]} 21... Rxd8 {[%clk 0:02:06.6]} 22. fxg5 {[%clk 0:02:09.4]}
22... hxg5 {[%clk 0:02:06.4]} 23. Kc2 {[%clk 0:02:05.2]} 23... Ne5 {[%clk
0:02:03.4]} 24. Bg2 {[%clk 0:02:01.9]} 24... b6 {[%clk 0:02:02.4]} 25. Nb3
{[%clk 0:01:55.4]} 25... Nc4 {[%clk 0:01:44]} 26. Re1 {[%clk 0:01:50.2]} 26...
Rh8 {[%clk 0:01:43.4]} 27. h3 {[%clk 0:01:49.7]} 27... Bb7 {[%clk 0:01:34.7]}
28. Bxb7 {[%clk 0:01:25.8]} 28... Kxb7 {[%clk 0:01:34.6]} 29. Rh1 {[%clk
0:01:26.4]} 29... Ne3+ {[%clk 0:01:32.9]} 30. Kd3 {[%clk 0:01:22.4]} 30... Nf5
{[%clk 0:01:32.8]} 31. g4 {[%clk 0:01:16.1]} 31... Ne7 {[%clk 0:01:31.5]} 32.
Nd4 {[%clk 0:01:12.7]} 32... Ng6 {[%clk 0:01:30.2]} 33. Ne2 {[%clk 0:01:10.6]}
33... Ne5+ {[%clk 0:01:30]} 34. Ke4 {[%clk 0:01:09.1]} 34... Nxg4 {[%clk
0:01:29.9]} 35. Rf1 {[%clk 0:01:06.8]} 35... f5+ {[%clk 0:01:29.4]} 36. Kd4
{[%clk 0:01:04.7]} 36... Rxh3 {[%clk 0:01:28.5]} 37. Nc1 {[%clk 0:01:01]} 37...
e5+ {[%clk 0:01:18.2]} 38. Kd5 {[%clk 0:01:01]} 38... Ne3+ {[%clk 0:01:18.5]}
0-1

[Event "Early-Titled-Tuesday-Blitz-November-28-2023"]
[Site "Chess.com"]
[Date "2023.11.28"]
[Round "2"]
[White "Statham_l3"]
[Black "Krakozia"]
[Result "0-1"]
[WhiteElo "2605"]
[BlackElo "2953"]
[TimeControl "180+1"]
[EndTime "8:16:04 PST"]
[Termination "Krakozia won by resignation"]

1. e4 {[%clk 0:03:00.9]} 1... c5 {[%clk 0:02:58]} 2. Nf3 {[%clk 0:03:00.9]} 2...
e6 {[%clk 0:02:58.5]} 3. d4 {[%clk 0:02:57.7]} 3... cxd4 {[%clk 0:02:58.4]} 4.
Nxd4 {[%clk 0:02:58.5]} 4... Nf6 {[%clk 0:02:58.2]} 5. Nc3 {[%clk 0:02:58.4]}
5... Nc6 {[%clk 0:02:58.6]} 6. Nxc6 {[%clk 0:02:58.3]} 6... bxc6 {[%clk
0:02:57.3]} 7. e5 {[%clk 0:02:58.9]} 7... Nd5 {[%clk 0:02:57.5]} 8. Ne4 {[%clk
0:02:59.5]} 8... Qc7 {[%clk 0:02:58]} 9. f4 {[%clk 0:02:59.9]} 9... a5 {[%clk
0:02:58.4]} 10. c4 {[%clk 0:02:51.5]} 10... Bb4+ {[%clk 0:02:56.9]} 11. Ke2
{[%clk 0:02:46.5]} 11... O-O {[%clk 0:02:57]} 12. cxd5 {[%clk 0:02:24]} 12...
cxd5 {[%clk 0:02:56.4]} 13. Nf2 {[%clk 0:02:09.3]} 13... d6 {[%clk 0:02:37.8]}
14. a3 {[%clk 0:01:38.4]} 14... Bc5 {[%clk 0:02:33.1]} 15. exd6 {[%clk
0:01:14.1]} 15... Bxd6 {[%clk 0:02:27.2]} 16. Kf3 {[%clk 0:01:02.1]} 16... Bb7
{[%clk 0:02:22.8]} 17. Bd3 {[%clk 0:00:52.3]} 17... e5 {[%clk 0:02:14.4]} 18.
fxe5 {[%clk 0:00:52.8]} 18... Bxe5 {[%clk 0:02:14.3]} 19. Qc2 {[%clk 0:00:52.3]}
19... d4+ {[%clk 0:02:08.8]} 20. Ke2 {[%clk 0:00:25.6]} 20... Qe7 {[%clk
0:02:08.5]} 21. Bxh7+ {[%clk 0:00:24.9]} 21... Kh8 {[%clk 0:02:08.3]} 22. Be4
{[%clk 0:00:20.6]} 22... Rfc8 {[%clk 0:02:05.2]} 23. Qd3 {[%clk 0:00:20]} 23...
Ba6 {[%clk 0:02:03.1]} 24. Bxa8 {[%clk 0:00:12.6]} 24... Rxa8 {[%clk 0:02:02.3]}
25. Ne4 {[%clk 0:00:05.6]} 25... Bf4 {[%clk 0:01:55.7]} 26. Kf3 {[%clk
0:00:01.6]} 26... Bxd3 {[%clk 0:01:53.3]} 27. Re1 {[%clk 0:00:02.3]} 27... Be3
{[%clk 0:01:50.9]} 28. Bxe3 {[%clk 0:00:01.9]} 0-1

[Event "Early-Titled-Tuesday-Blitz-November-28-2023"]
[Site "Chess.com"]
[Date "2023.11.28"]
[Round "2"]
[White "McCarthyStone"]
[Black "NovozhilovSemen"]
[Result "0-1"]
[WhiteElo "2390"]
[BlackElo "2728"]
[TimeControl "180+1"]
[EndTime "8:16:04 PST"]
[Termination "NovozhilovSemen won by resignation"]

1. b3 {[%clk 0:03:00.4]} 1... a5 {[%clk 0:02:59.8]} 2. a4 {[%clk 0:02:59.4]}
2... g6 {[%clk 0:02:59.1]} 3. Bb2 {[%clk 0:02:59.1]} 3... Nf6 {[%clk 0:02:59.7]}
4. e4 {[%clk 0:02:58.1]} 4... Bg7 {[%clk 0:03:00]} 5. e5 {[%clk 0:02:58.2]} 5...
Nd5 {[%clk 0:03:00.3]} 6. d4 {[%clk 0:02:57.6]} 6... O-O {[%clk 0:02:59.2]} 7.
Nf3 {[%clk 0:02:58]} 7... b6 {[%clk 0:02:58.3]} 8. Be2 {[%clk 0:02:57.4]} 8...
Bb7 {[%clk 0:02:58.6]} 9. O-O {[%clk 0:02:58.1]} 9... c5 {[%clk 0:02:59]} 10.
dxc5 {[%clk 0:02:56.4]} 10... bxc5 {[%clk 0:02:59.9]} 11. Re1 {[%clk 0:02:54.1]}
11... Qc7 {[%clk 0:02:56.1]} 12. Nbd2 {[%clk 0:02:49.6]} 12... Nc6 {[%clk
0:02:54.5]} 13. Nc4 {[%clk 0:02:49.5]} 13... e6 {[%clk 0:02:46.1]} 14. Nd6
{[%clk 0:02:48.7]} 14... Nxe5 {[%clk 0:02:36.3]} 15. Nb5 {[%clk 0:02:18.9]}
15... Qb8 {[%clk 0:02:33.3]} 16. Nxe5 {[%clk 0:02:14]} 16... Bxe5 {[%clk
0:02:31.8]} 17. Bxe5 {[%clk 0:02:14.9]} 17... Qxe5 {[%clk 0:02:32.2]} 18. Bf3
{[%clk 0:02:15.8]} 18... Qb8 {[%clk 0:02:27.5]} 19. h4 {[%clk 0:01:52.6]} 19...
h6 {[%clk 0:02:09.6]} 20. Qd2 {[%clk 0:01:49.2]} 20... Kh7 {[%clk 0:02:09.3]}
21. h5 {[%clk 0:01:49.1]} 21... g5 {[%clk 0:02:03.3]} 22. Rad1 {[%clk
0:01:40.5]} 22... Bc6 {[%clk 0:02:00.5]} 23. c4 {[%clk 0:01:19.9]} 23... Nf4
{[%clk 0:01:54.4]} 24. Qc2+ {[%clk 0:01:12.2]} 24... Kg8 {[%clk 0:01:46.4]} 25.
Bxc6 {[%clk 0:00:53.2]} 25... dxc6 {[%clk 0:01:47.3]} 26. Nd6 {[%clk 0:00:52.7]}
26... Nxh5 {[%clk 0:01:46.7]} 27. Rxe6 {[%clk 0:00:37.9]} 27... fxe6 {[%clk
0:01:38]} 28. Qg6+ {[%clk 0:00:37.9]} 28... Ng7 {[%clk 0:01:38.2]} 29. Nf5
{[%clk 0:00:31.2]} 29... exf5 {[%clk 0:01:35.3]} 30. Rd7 {[%clk 0:00:30.8]}
30... Qe5 {[%clk 0:01:35.4]} 0-1

[Event "Early-Titled-Tuesday-Blitz-November-28-2023"]
[Site "Chess.com"]
[Date "2023.11.28"]
[Round "2"]
[White "Kolle05"]
[Black "kai_nov"]
[Result "1-0"]
[WhiteElo "2660"]
[BlackElo "2250"]
[TimeControl "180+1"]
[EndTime "8:16:05 PST"]
[Termination "Kolle05 won by resignation"]

1. e4 {[%clk 0:03:00]} 1... c5 {[%clk 0:02:58]} 2. Nf3 {[%clk 0:02:59.9]} 2...
Nc6 {[%clk 0:02:57.1]} 3. d4 {[%clk 0:03:00.1]} 3... cxd4 {[%clk 0:02:57.4]} 4.
Nxd4 {[%clk 0:03:01]} 4... e5 {[%clk 0:02:58]} 5. Nb5 {[%clk 0:03:00]} 5... a6
{[%clk 0:02:58.2]} 6. Nd6+ {[%clk 0:02:59.7]} 6... Bxd6 {[%clk 0:02:58.3]} 7.
Qxd6 {[%clk 0:03:00.6]} 7... Qe7 {[%clk 0:02:58.6]} 8. Qd1 {[%clk 0:03:00.1]}
8... Nf6 {[%clk 0:02:57.8]} 9. Nc3 {[%clk 0:03:00.2]} 9... d6 {[%clk 0:02:57.8]}
10. Bg5 {[%clk 0:02:59.7]} 10... Be6 {[%clk 0:02:57.9]} 11. Nd5 {[%clk
0:02:59.7]} 11... Bxd5 {[%clk 0:02:57.8]} 12. exd5 {[%clk 0:03:00.6]} 12... Nb8
{[%clk 0:02:58]} 13. a4 {[%clk 0:02:57.2]} 13... Nbd7 {[%clk 0:02:57.9]} 14. Be2
{[%clk 0:02:56.4]} 14... h6 {[%clk 0:02:57.7]} 15. Be3 {[%clk 0:02:55.5]} 15...
O-O {[%clk 0:02:56.9]} 16. O-O {[%clk 0:02:55.2]} 16... Rac8 {[%clk 0:02:54.7]}
17. c4 {[%clk 0:02:54.1]} 17... Ne4 {[%clk 0:02:45.8]} 18. f3 {[%clk 0:02:47.6]}
18... Nef6 {[%clk 0:02:42.1]} 19. a5 {[%clk 0:02:46.7]} 19... Nc5 {[%clk
0:02:39]} 20. b4 {[%clk 0:02:45.4]} 20... Ncd7 {[%clk 0:02:38.7]} 21. Rc1 {[%clk
0:02:43.8]} 21... e4 {[%clk 0:02:33.2]} 22. f4 {[%clk 0:02:43.6]} 22... Rc7
{[%clk 0:02:18.4]} 23. Qd2 {[%clk 0:02:36.2]} 23... Rfc8 {[%clk 0:02:15.7]} 24.
Rc2 {[%clk 0:02:35.6]} 24... h5 {[%clk 0:02:02.2]} 25. h3 {[%clk 0:02:35.1]}
25... g6 {[%clk 0:01:45.4]} 26. Rfc1 {[%clk 0:02:34.5]} 26... Qf8 {[%clk
0:01:39.5]} 27. c5 {[%clk 0:02:31.9]} 27... dxc5 {[%clk 0:01:38.3]} 28. bxc5
{[%clk 0:02:32.8]} 28... Nxc5 {[%clk 0:01:25.5]} 29. d6 {[%clk 0:02:32.6]} 29...
Rc6 {[%clk 0:01:23]} 30. Rxc5 {[%clk 0:02:30.5]} 30... Rxc5 {[%clk 0:00:43]} 31.
Bxc5 {[%clk 0:02:24.9]} 31... Nd7 {[%clk 0:00:40.3]} 32. Ba3 {[%clk 0:02:23]}
32... Rxc1+ {[%clk 0:00:37.2]} 33. Bxc1 {[%clk 0:02:23.9]} 33... Qd8 {[%clk
0:00:31.6]} 34. Bb2 {[%clk 0:02:17.8]} 34... f6 {[%clk 0:00:21.1]} 35. Bc4+
{[%clk 0:02:15.3]} 35... Kg7 {[%clk 0:00:20.5]} 36. Qd5 {[%clk 0:02:15.4]} 36...
Nb8 {[%clk 0:00:17.4]} 37. Qf7+ {[%clk 0:02:06.1]} 37... Kh6 {[%clk 0:00:16.8]}
38. Bxf6 {[%clk 0:02:06]} 1-0

[Event "Early-Titled-Tuesday-Blitz-November-28-2023"]
[Site "Chess.com"]
[Date "2023.11.28"]
[Round "2"]
[White "Qvalda"]
[Black "Franmu14"]
[Result "0-1"]
[WhiteElo "2409"]
[BlackElo "2715"]
[TimeControl "180+1"]
[EndTime "8:16:06 PST"]
[Termination "Franmu14 won on time"]

1. Nf3 {[%clk 0:03:00.9]} 1... d5 {[%clk 0:02:59.6]} 2. g3 {[%clk 0:03:00.4]}
2... e6 {[%clk 0:02:59.5]} 3. Bg2 {[%clk 0:02:58.8]} 3... Nf6 {[%clk 0:03:00.4]}
4. O-O {[%clk 0:02:58.2]} 4... Be7 {[%clk 0:03:00.7]} 5. c4 {[%clk 0:02:58.2]}
5... O-O {[%clk 0:03:01.6]} 6. b3 {[%clk 0:02:57.4]} 6... Re8 {[%clk 0:03:01.7]}
7. Bb2 {[%clk 0:02:57.5]} 7... c5 {[%clk 0:03:02]} 8. cxd5 {[%clk 0:02:57.6]}
8... exd5 {[%clk 0:03:01.9]} 9. d4 {[%clk 0:02:57.8]} 9... b6 {[%clk 0:03:02.3]}
10. Nc3 {[%clk 0:02:55.8]} 10... Bb7 {[%clk 0:03:02.5]} 11. dxc5 {[%clk
0:02:46.1]} 11... bxc5 {[%clk 0:03:02.5]} 12. Na4 {[%clk 0:02:46.1]} 12... Nbd7
{[%clk 0:03:02.5]} 13. Rc1 {[%clk 0:02:40.7]} 13... Rc8 {[%clk 0:03:02.6]} 14.
Qc2 {[%clk 0:02:29.7]} 14... Bf8 {[%clk 0:03:01.8]} 15. Rfe1 {[%clk 0:02:18.7]}
15... Qe7 {[%clk 0:03:00.8]} 16. Qb1 {[%clk 0:02:17.3]} 16... Ne4 {[%clk
0:02:58.4]} 17. Nc3 {[%clk 0:02:13.4]} 17... d4 {[%clk 0:02:53.8]} 18. Nxe4
{[%clk 0:02:05.2]} 18... Bxe4 {[%clk 0:02:54.7]} 19. Qa1 {[%clk 0:02:05.5]}
19... Nf6 {[%clk 0:02:54.7]} 20. b4 {[%clk 0:02:02.2]} 20... cxb4 {[%clk
0:02:48.7]} 21. Bxd4 {[%clk 0:01:58]} 21... Nd5 {[%clk 0:02:43.7]} 22. Red1
{[%clk 0:01:30.6]} 22... a5 {[%clk 0:02:42.6]} 23. Be5 {[%clk 0:01:18.4]} 23...
Qa7 {[%clk 0:02:38.9]} 24. Rxc8 {[%clk 0:01:07.2]} 24... Rxc8 {[%clk 0:02:39.8]}
25. Rd4 {[%clk 0:00:56.1]} 25... Nc3 {[%clk 0:02:34.6]} 26. Bf1 {[%clk
0:00:34.2]} 26... f6 {[%clk 0:02:17.4]} 27. Bf4 {[%clk 0:00:31]} 27... Bxf3
{[%clk 0:02:15.7]} 28. Be3 {[%clk 0:00:20]} 28... Bxe2 {[%clk 0:02:10.5]} 29.
Rc4 {[%clk 0:00:10.9]} 29... Qa6 {[%clk 0:01:57.3]} 30. Rxc8 {[%clk 0:00:05]}
30... Qxc8 {[%clk 0:01:58.2]} 31. Bg2 {[%clk 0:00:02.8]} 31... Qd7 {[%clk
0:01:56.1]} 32. Qe1 {[%clk 0:00:01.9]} 32... Qd1 {[%clk 0:01:55.5]} 33. Qxd1
{[%clk 0:00:02]} 33... Nxd1 {[%clk 0:01:55.6]} 34. Bb6 {[%clk 0:00:02.9]} 34...
a4 {[%clk 0:01:55.5]} 35. Ba5 {[%clk 0:00:03]} 35... Bc4 {[%clk 0:01:53.2]} 0-1

[Event "Early-Titled-Tuesday-Blitz-November-28-2023"]
[Site "Chess.com"]
[Date "2023.11.28"]
[Round "2"]
[White "sergiochess83"]
[Black "salomez"]
[Result "1-0"]
[WhiteElo "2883"]
[BlackElo "2401"]
[TimeControl "180+1"]
[EndTime "8:16:09 PST"]
[Termination "sergiochess83 won by resignation"]

1. d4 {[%clk 0:02:55.4]} 1... e6 {[%clk 0:02:59]} 2. Nf3 {[%clk 0:02:52.7]} 2...
f5 {[%clk 0:02:58.3]} 3. Bf4 {[%clk 0:02:51.8]} 3... Nf6 {[%clk 0:02:58.2]} 4.
e3 {[%clk 0:02:52.3]} 4... b6 {[%clk 0:02:52.4]} 5. Be2 {[%clk 0:02:52.1]} 5...
Bb7 {[%clk 0:02:52.7]} 6. O-O {[%clk 0:02:52.2]} 6... Be7 {[%clk 0:02:43.9]} 7.
h3 {[%clk 0:02:51.2]} 7... Ne4 {[%clk 0:02:36.9]} 8. c4 {[%clk 0:02:49.7]} 8...
d6 {[%clk 0:02:37]} 9. d5 {[%clk 0:02:42.1]} 9... e5 {[%clk 0:02:34.7]} 10. Bh2
{[%clk 0:02:38.9]} 10... Nd7 {[%clk 0:02:20]} 11. Nfd2 {[%clk 0:02:38.4]} 11...
Nxd2 {[%clk 0:01:32]} 12. Qxd2 {[%clk 0:02:37.4]} 12... O-O {[%clk 0:01:25.2]}
13. Nc3 {[%clk 0:02:37.5]} 13... a5 {[%clk 0:01:17.9]} 14. b3 {[%clk 0:02:22.1]}
14... Bf6 {[%clk 0:01:08.4]} 15. Rab1 {[%clk 0:02:19.1]} 15... Qe8 {[%clk
0:01:04.9]} 16. Nb5 {[%clk 0:02:14.8]} 16... Rc8 {[%clk 0:01:00.3]} 17. a3
{[%clk 0:02:15.3]} 17... g5 {[%clk 0:00:32.6]} 18. b4 {[%clk 0:02:09.1]} 18...
axb4 {[%clk 0:00:32.1]} 19. axb4 {[%clk 0:02:09.5]} 19... Ba6 {[%clk 0:00:18.1]}
20. Na7 {[%clk 0:01:54.2]} 20... Ra8 {[%clk 0:00:16.8]} 21. Nc6 {[%clk
0:01:54.9]} 21... Qg6 {[%clk 0:00:15.3]} 22. Ra1 {[%clk 0:01:54.2]} 22... Bb7
{[%clk 0:00:14.9]} 23. e4 {[%clk 0:01:42.7]} 23... fxe4 {[%clk 0:00:06.5]} 24.
Bg4 {[%clk 0:01:42.8]} 24... Qg7 {[%clk 0:00:04.4]} 25. Qe3 {[%clk 0:01:37.8]}
25... h6 {[%clk 0:00:02.9]} 26. Qxe4 {[%clk 0:01:37.4]} 26... Qf7 {[%clk
0:00:01.4]} 27. Be6 {[%clk 0:01:36.7]} 1-0

[Event "Early-Titled-Tuesday-Blitz-November-28-2023"]
[Site "Chess.com"]
[Date "2023.11.28"]
[Round "2"]
[White "StellarChessPro"]
[Black "ActorXu"]
[Result "0-1"]
[WhiteElo "2549"]
[BlackElo "2847"]
[TimeControl "180+1"]
[EndTime "8:16:11 PST"]
[Termination "ActorXu won by resignation"]

1. b3 {[%clk 0:03:00.9]} 1... e5 {[%clk 0:02:59]} 2. Bb2 {[%clk 0:03:01]} 2...
Nc6 {[%clk 0:02:58.6]} 3. e3 {[%clk 0:03:01.4]} 3... g6 {[%clk 0:02:56.3]} 4.
Ne2 {[%clk 0:02:58.9]} 4... Bg7 {[%clk 0:02:56.1]} 5. d4 {[%clk 0:02:59.6]} 5...
d6 {[%clk 0:02:54.6]} 6. g3 {[%clk 0:02:58.2]} 6... h5 {[%clk 0:02:48]} 7. h4
{[%clk 0:02:58]} 7... Nf6 {[%clk 0:02:47.2]} 8. Bg2 {[%clk 0:02:54.2]} 8... Ng4
{[%clk 0:02:36.5]} 9. O-O {[%clk 0:02:52.4]} 9... O-O {[%clk 0:02:32.9]} 10. Nd2
{[%clk 0:02:46.4]} 10... Bf5 {[%clk 0:02:31.3]} 11. d5 {[%clk 0:02:41.7]} 11...
Ne7 {[%clk 0:02:27.2]} 12. e4 {[%clk 0:02:41.4]} 12... Bd7 {[%clk 0:02:26.9]}
13. c4 {[%clk 0:02:42]} 13... f5 {[%clk 0:02:24.1]} 14. exf5 {[%clk 0:02:37.6]}
14... gxf5 {[%clk 0:02:19.7]} 15. Nf3 {[%clk 0:02:37.5]} 15... e4 {[%clk
0:02:03.6]} 16. Nfd4 {[%clk 0:02:36.8]} 16... Ng6 {[%clk 0:02:03.4]} 17. Qd2
{[%clk 0:02:20.9]} 17... Nxh4 {[%clk 0:01:43.5]} 18. Nf4 {[%clk 0:02:20.8]}
18... Bh6 {[%clk 0:01:17.5]} 19. Nde6 {[%clk 0:02:10]} 19... Bxe6 {[%clk
0:01:11.6]} 20. dxe6 {[%clk 0:02:10.9]} 20... Ng6 {[%clk 0:00:34.8]} 21. Qd5
{[%clk 0:01:35.5]} 21... Nxf4 {[%clk 0:00:31.8]} 22. gxf4 {[%clk 0:01:25.5]}
22... Qh4 {[%clk 0:00:31]} 23. e7+ {[%clk 0:01:25.7]} 23... Rf7 {[%clk
0:00:30.8]} 24. Rfd1 {[%clk 0:01:16]} 24... Qxf2+ {[%clk 0:00:29.4]} 25. Kh1
{[%clk 0:01:14.6]} 25... Qxf4 {[%clk 0:00:28.4]} 26. Kg1 {[%clk 0:01:12.7]}
26... Qh2+ {[%clk 0:00:27.9]} 27. Kf1 {[%clk 0:01:13.2]} 27... Ne3+ {[%clk
0:00:28.2]} 28. Ke1 {[%clk 0:01:11.5]} 28... Nxd5 {[%clk 0:00:25.6]} 0-1

[Event "Early-Titled-Tuesday-Blitz-November-28-2023"]
[Site "Chess.com"]
[Date "2023.11.28"]
[Round "2"]
[White "Chempiblinka"]
[Black "DvaHrasta"]
[Result "0-1"]
[WhiteElo "2261"]
[BlackElo "2502"]
[TimeControl "180+1"]
[EndTime "8:16:13 PST"]
[Termination "DvaHrasta won on time"]

1. Nf3 {[%clk 0:02:12]} 1... Nf6 {[%clk 0:02:58.9]} 2. g3 {[%clk 0:02:08.8]}
2... d5 {[%clk 0:02:57.9]} 3. Bg2 {[%clk 0:02:06.6]} 3... c5 {[%clk 0:02:56.1]}
4. O-O {[%clk 0:02:06.1]} 4... Nc6 {[%clk 0:02:56.3]} 5. c4 {[%clk 0:02:05.9]}
5... d4 {[%clk 0:02:55.2]} 6. d3 {[%clk 0:02:04.1]} 6... Bg4 {[%clk 0:02:54.2]}
7. Na3 {[%clk 0:01:51]} 7... e5 {[%clk 0:02:50.2]} 8. Nc2 {[%clk 0:01:50.4]}
8... Bd6 {[%clk 0:02:44]} 9. h3 {[%clk 0:01:39.9]} 9... Bh5 {[%clk 0:02:42.4]}
10. a3 {[%clk 0:01:34]} 10... a5 {[%clk 0:02:36.3]} 11. b3 {[%clk 0:01:33.2]}
11... O-O {[%clk 0:02:35.5]} 12. Rb1 {[%clk 0:01:33.1]} 12... Re8 {[%clk
0:02:31.4]} 13. Bd2 {[%clk 0:01:12.8]} 13... e4 {[%clk 0:02:29.6]} 14. dxe4
{[%clk 0:01:12.4]} 14... Nxe4 {[%clk 0:02:29.7]} 15. b4 {[%clk 0:01:07.6]} 15...
Nxd2 {[%clk 0:02:25.6]} 16. Qxd2 {[%clk 0:01:08.5]} 16... axb4 {[%clk
0:02:24.5]} 17. axb4 {[%clk 0:01:09.1]} 17... Ra2 {[%clk 0:02:17.7]} 18. Ra1
{[%clk 0:01:00]} 18... Rb2 {[%clk 0:02:09.7]} 19. Qc1 {[%clk 0:00:47.1]} 19...
Rxc2 {[%clk 0:02:04.2]} 20. Qxc2 {[%clk 0:00:46.7]} 20... Nxb4 {[%clk
0:02:04.3]} 21. Qd2 {[%clk 0:00:46.1]} 21... h6 {[%clk 0:01:55.5]} 22. g4 {[%clk
0:00:41]} 22... Bg6 {[%clk 0:01:54.8]} 23. Rfc1 {[%clk 0:00:38.1]} 23... Be4
{[%clk 0:01:50.2]} 24. Ra7 {[%clk 0:00:32]} 24... Qf6 {[%clk 0:01:45.8]} 25.
Rca1 {[%clk 0:00:30.8]} 25... d3 {[%clk 0:01:40.7]} 26. Ne1 {[%clk 0:00:18.6]}
26... Bxg2 {[%clk 0:01:35.8]} 27. Nxg2 {[%clk 0:00:18.6]} 27... Rxe2 {[%clk
0:01:33.5]} 28. Ra8+ {[%clk 0:00:15.2]} 28... Kh7 {[%clk 0:01:32]} 0-1

[Event "Early-Titled-Tuesday-Blitz-November-28-2023"]
[Site "Chess.com"]
[Date "2023.11.28"]
[Round "2"]
[White "VitaliyChayka"]
[Black "olakenn"]
[Result "1-0"]
[WhiteElo "2418"]
[BlackElo "1896"]
[TimeControl "180+1"]
[EndTime "8:16:19 PST"]
[Termination "VitaliyChayka won by resignation"]

1. d4 {[%clk 0:03:00.9]} 1... Nf6 {[%clk 0:02:59.4]} 2. Bf4 {[%clk 0:03:00.8]}
2... g6 {[%clk 0:02:56.8]} 3. e3 {[%clk 0:03:01.2]} 3... Bg7 {[%clk 0:02:56.8]}
4. Nf3 {[%clk 0:03:01.4]} 4... O-O {[%clk 0:02:56.7]} 5. h3 {[%clk 0:03:01.9]}
5... c5 {[%clk 0:02:54.5]} 6. c3 {[%clk 0:03:01.9]} 6... cxd4 {[%clk 0:02:54.1]}
7. exd4 {[%clk 0:03:01.3]} 7... d6 {[%clk 0:02:52.8]} 8. Be2 {[%clk 0:03:00.2]}
8... Bd7 {[%clk 0:02:50.2]} 9. O-O {[%clk 0:02:59.4]} 9... Bc6 {[%clk
0:02:50.2]} 10. Nbd2 {[%clk 0:02:58.3]} 10... b6 {[%clk 0:02:43.2]} 11. Re1
{[%clk 0:02:56]} 11... Nbd7 {[%clk 0:02:42.8]} 12. Qb3 {[%clk 0:02:51]} 12...
Bd5 {[%clk 0:02:27.5]} 13. Bc4 {[%clk 0:02:39.8]} 13... Bxc4 {[%clk 0:02:27.1]}
14. Nxc4 {[%clk 0:02:40.4]} 14... Rc8 {[%clk 0:02:16.2]} 15. a4 {[%clk 0:02:38]}
15... Qc7 {[%clk 0:02:05.2]} 16. Ne3 {[%clk 0:02:26.8]} 16... Rfe8 {[%clk
0:02:03.3]} 17. Ng5 {[%clk 0:02:17.3]} 17... e6 {[%clk 0:01:54.9]} 18. Qa3
{[%clk 0:02:00.6]} 18... e5 {[%clk 0:01:38.8]} 19. Bh2 {[%clk 0:01:52.4]} 19...
h6 {[%clk 0:01:28.8]} 20. Nf3 {[%clk 0:01:49.3]} 20... Re6 {[%clk 0:01:10]} 21.
a5 {[%clk 0:01:44.9]} 21... bxa5 {[%clk 0:00:59.5]} 22. Qxa5 {[%clk 0:01:44.2]}
22... Qxa5 {[%clk 0:00:59.2]} 23. Rxa5 {[%clk 0:01:45.1]} 23... Rc7 {[%clk
0:00:39.7]} 24. Rea1 {[%clk 0:01:36.6]} 24... Rb7 {[%clk 0:00:20.3]} 25. R1a2
{[%clk 0:01:24.6]} 25... Kh7 {[%clk 0:00:17]} 26. Rxa7 {[%clk 0:01:22.3]} 26...
Rxa7 {[%clk 0:00:16.4]} 27. Rxa7 {[%clk 0:01:23.2]} 27... exd4 {[%clk
0:00:11.6]} 28. Nxd4 {[%clk 0:01:24.1]} 28... Nb6 {[%clk 0:00:10.7]} 29. Nxe6
{[%clk 0:01:23.3]} 1-0